bitfinex/quotes_BTCUSD_20220306
["timestamp","ask_amount","ask_price","bid_price","bid_amount"]
[1646593397869,0.22904751,38851.0,38847.0,0.00018621]
[1646593398269,0.064399,38851.0,38847.0,0.00018621]
[1646593398471,0.12879787,38850.0,38845.0,0.15140861]
[1646593398671,0.12879787,38850.0,38847.0,0.0001862]
[1646593399171,0.42879787,38850.0,38847.0,0.0001862]
[1646593399372,0.12879787,38850.0,38847.0,0.0001862]
[1646593399571,0.18818006,38849.0,38843.0,0.3130551]
[1646593399772,0.48818006,38849.0,38847.0,0.00018617]
[1646593399976,0.18818006,38849.0,38847.0,0.00018617]
[1646593400172,0.12879787,38850.0,38847.0,0.00018617]
[1646593400772,0.12879787,38850.0,38843.0,0.3130551]
[1646593401028,0.3,38849.0,38847.0,0.00018617]
[1646593401227,0.21170173,38849.0,38847.0,0.00018617]
[1646593401628,0.42879787,38850.0,38847.0,0.00018617]
[1646593402031,0.42879787,38850.0,38843.0,0.3130551]
[1646593402228,0.42879787,38850.0,38847.0,0.00018617]
[1646593402429,0.12879787,38850.0,38847.0,0.00018617]
[1646593402631,0.150628,38849.0,38847.0,0.00018617]
[1646593402829,0.12879787,38850.0,38847.0,0.00018617]
[1646593403230,0.12879787,38850.0,38843.0,0.3130551]
[1646593403431,0.12879787,38850.0,38847.0,0.00018618]
[1646593403835,0.30320458,38850.0,38847.0,0.00018618]
[1646593404436,0.30320458,38850.0,38843.0,0.15586248]
[1646593404670,0.30320458,38850.0,38847.0,0.00018618]
[1646593405571,0.30320458,38850.0,38843.0,0.15586248]
[1646593405769,0.30320458,38850.0,38847.0,0.00018618]
[1646593406470,0.064395,38852.0,38847.0,0.00018618]
[1646593406671,0.107,38853.0,38847.0,0.00018618]
[1646593406870,0.007,38853.0,38843.0,0.20746248]
[1646593407072,0.007,38853.0,38848.0,0.00018617]
[1646593407970,0.16438906,38854.0,38843.0,0.20746248]
[1646593408170,0.1,38854.0,38849.0,0.00018617]
[1646593408621,0.26666229,38852.0,38849.0,0.00018617]
[1646593409218,0.26666229,38852.0,38843.0,0.15586248]
[1646593409421,0.33105559,38852.0,38849.0,0.00018617]
[1646593409820,0.26666229,38852.0,38849.0,0.00018617]
[1646593410021,0.20227029,38852.0,38849.0,0.00018617]
[1646593410322,0.20227029,38852.0,38844.0,0.14109879]
[1646593411721,0.16439033,38854.0,38849.0,0.17064903]
[1646593412176,0.2732039,38857.0,38849.0,0.17064903]
[1646593412372,1.24310127,38859.0,38849.0,0.17064903]
[1646593412373,1.1907439,38859.0,38849.0,0.17064903]
[1646593412874,0.16994132,38856.0,38851.0,0.17636353]
[1646593413072,0.37314467,38856.0,38849.0,0.17064903]
[1646593415177,0.37314467,38856.0,38851.0,0.21134889]
[1646593415379,0.20320335,38856.0,38851.0,0.21134889]
[1646593415577,0.20320335,38856.0,38849.0,0.17064903]
[1646593416620,0.38532917,38856.0,38849.0,0.17064903]
[1646593416818,0.12487976,38852.0,38848.0,0.001]
[1646593417318,0.90527976,38852.0,38848.0,0.001]
[1646593417518,0.7804,38851.0,38848.0,0.00061002]
[1646593417718,0.16611273,38850.0,38848.0,0.00061002]
[1646593417920,0.33307968,38850.0,38848.0,0.00061002]
[1646593418118,0.33307968,38850.0,38847.0,0.00019376]
[1646593418818,0.33307968,38850.0,38840.0,0.2175483]
[1646593419019,0.33307968,38850.0,38847.0,0.00019376]
[1646593419020,0.12881176,38848.0,38847.0,0.00019376]
[1646593420073,0.12881176,38848.0,38840.0,0.40608595]
[1646593420272,0.12881176,38848.0,38846.0,0.00019524]
[1646593420673,0.74007265,38847.0,38846.0,0.00019524]
[1646593420874,1.52047265,38847.0,38846.0,0.00019524]
[1646593421074,1.54649055,38847.0,38846.0,0.00019524]
[1646593421277,0.06441934,38845.0,38838.0,0.00180001]
[1646593421475,0.20869257,38839.0,38838.0,0.00180001]
[1646593421673,0.05995981,38841.0,38838.0,0.00180001]
[1646593421875,0.24576849,38842.0,38838.0,0.00180001]
[1646593422475,0.128842,38840.0,38838.0,0.00180001]
[1646593422676,0.128842,38840.0,38838.0,0.00198622]
[1646593423728,0.128842,38840.0,38838.0,0.00180001]
[1646593424929,0.005,38841.0,38840.0,0.27418313]
[1646593425134,0.005,38841.0,38840.0,0.32578313]
[1646593425731,0.005,38841.0,38840.0,0.51294688]
[1646593426929,0.1414,38849.0,38840.0,0.51294688]
[1646593427177,0.1414,38849.0,38846.0,0.18184425]
[1646593427372,0.01286,38852.0,38848.0,0.19161205]
[1646593428771,0.3603439,38853.0,38848.0,0.19161205]
[1646593429173,0.2603439,38854.0,38848.0,0.19161205]
[1646593429375,0.2603439,38855.0,38848.0,0.19161205]
[1646593430174,0.2603439,38855.0,38848.0,0.16362265]
[1646593431842,0.20832057,38853.0,38848.0,0.16362265]
[1646593432241,0.20832057,38853.0,38852.0,0.21925591]
[1646593432444,0.20832057,38855.0,38852.0,0.21925591]
[1646593432843,0.20832057,38855.0,38849.0,0.3516]
[1646593433043,0.20832057,38856.0,38849.0,0.0516]
[1646593434785,0.27270957,38856.0,38849.0,0.0516]
[1646593434984,0.27270957,38856.0,38848.0,0.16362265]
[1646593434985,0.20832057,38855.0,38848.0,0.16362265]
[1646593435787,0.20832057,38854.0,38848.0,0.16362265]
[1646593436289,0.20832057,38855.0,38848.0,0.16362265]
[1646593437888,0.20832057,38855.0,38849.0,0.3]
[1646593438091,0.13177356,38858.0,38852.0,0.02572]
[1646593438092,0.20832057,38858.0,38852.0,0.02572]
[1646593438291,0.2603439,38862.0,38853.0,0.22732]
[1646593438527,0.2603439,38862.0,38854.0,0.0516]
[1646593438931,0.77399361,38866.0,38857.0,0.15669833]
[1646593438932,0.002,38859.0,38857.0,0.15669833]
[1646593439130,0.002,38859.0,38858.0,0.0516]
[1646593440131,0.72184346,38866.0,38858.0,0.24666486]
[1646593440132,0.87766165,38866.0,38858.0,0.24666486]
[1646593440329,0.87766165,38866.0,38858.0,0.54666486]
[1646593440330,0.66948609,38866.0,38858.0,0.54666486]
[1646593440529,0.6687439,38866.0,38858.0,0.54666486]
[1646593440732,0.6687439,38866.0,38858.0,0.24666486]
[1646593441231,0.6687439,38866.0,38858.0,0.54666486]
[1646593441435,0.6687439,38866.0,38858.0,0.24666486]
[1646593441631,0.6687439,38866.0,38859.0,0.06435831]
[1646593442032,0.6687439,38866.0,38863.0,0.16574838]
[1646593442033,0.4084,38866.0,38863.0,0.16574838]
[1646593442276,0.4084,38866.0,38864.0,0.3516]
[1646593442474,0.4084,38866.0,38865.0,0.3]
[1646593442671,0.4084,38866.0,38865.0,0.0516]
[1646593442869,0.4084,38866.0,38865.0,0.25896989]
[1646593443070,0.4084,38866.0,38865.0,0.0516]
[1646593444074,0.4084,38866.0,38865.0,0.3516]
[1646593444575,0.4084,38866.0,38865.0,0.52732]
[1646593445175,0.4084,38866.0,38865.0,0.5016]
[1646593445574,0.4084,38866.0,38865.0,0.3516]
[1646593445777,0.4084,38866.0,38865.0,0.0516]
[1646593446629,0.4084,38866.0,38865.0,0.21285717]
[1646593446825,0.4084,38866.0,38865.0,0.0516]
[1646593454936,0.1533,38878.0,38865.0,0.0516]
[1646593454937,0.1533,38878.0,38868.0,0.15450402]
[1646593455140,0.1533,38878.0,38876.0,0.18194435]
[1646593455336,0.20814481,38880.0,38876.0,0.18194435]
[1646593455736,0.0001864,38880.0,38876.0,0.18194435]
[1646593456037,0.0001864,38880.0,38875.0,0.21130958]
[1646593456237,0.01285,38882.0,38876.0,0.3]
[1646593456437,0.00018643,38880.0,38876.0,0.3516]
[1646593457040,0.00018643,38880.0,38877.0,0.18034252]
[1646593457280,0.00018643,38880.0,38879.0,0.064323]
[1646593457481,0.002,38887.0,38880.0,0.064323]
[1646593457679,0.002,38887.0,38880.0,0.115923]
[1646593458080,0.20795841,38889.0,38880.0,0.115923]
[1646593458485,0.1428,38890.0,38880.0,0.18024549]
[1646593458681,0.1428,38890.0,38880.0,0.0516]
[1646593458682,0.16447589,38885.0,38880.0,0.0516]
[1646593458884,0.16447589,38885.0,38875.0,0.1479]
[1646593459081,0.19019589,38885.0,38875.0,0.001]
[1646593459281,0.16447589,38885.0,38875.0,0.001]
[1646593459481,0.18111654,38882.0,38877.0,0.1839472]
[1646593459684,0.18111654,38882.0,38875.0,0.001]
[1646593460082,0.16447589,38885.0,38875.0,0.001]
[1646593460287,0.16447589,38885.0,38874.0,0.23038511]
[1646593460485,0.16447589,38885.0,38874.0,0.29472211]
[1646593461229,0.00020166,38881.0,38876.0,0.16169535]
[1646593461527,0.00020166,38881.0,38876.0,0.16102627]
[1646593462131,0.164339,38889.0,38876.0,0.16102627]
[1646593462334,0.00020523,38880.0,38876.0,0.16102627]
[1646593462932,0.00020523,38880.0,38876.0,0.22535927]
[1646593463334,0.26852,38890.0,38876.0,0.22535927]
[1646593463534,0.26852,38890.0,38883.0,0.20475377]
[1646593463732,0.26852,38890.0,38883.0,0.0974909]
[1646593463733,0.00082081,38886.0,38883.0,0.0974909]
[1646593464534,0.17813418,38887.0,38883.0,0.0974909]
[1646593464783,0.00018947,38886.0,38877.0,0.1496]
[1646593464988,0.00018947,38886.0,38877.0,0.19137698]
[1646593465185,0.00018947,38886.0,38874.0,0.0516]
[1646593465784,0.19537282,38885.0,38875.0,0.21069938]
[1646593465984,0.00018507,38882.0,38875.0,0.21069938]
[1646593466185,0.19552431,38882.0,38876.0,0.1793727]
[1646593466385,0.19552431,38882.0,38875.0,0.21069938]
[1646593466988,0.19533924,38882.0,38875.0,0.21069938]
[1646593467286,0.00018508,38880.0,38876.0,0.1639152]
[1646593467489,0.00018508,38880.0,38875.0,0.21069938]
[1646593467687,0.064346,38885.0,38875.0,0.21069938]
[1646593468188,0.064342,38887.0,38875.0,0.21069938]
[1646593468424,0.20160698,38883.0,38879.0,0.16874428]
[1646593468624,0.20160698,38883.0,38875.0,0.21069938]
[1646593469624,0.20160698,38883.0,38878.0,0.17333873]
[1646593470427,0.128684,38887.0,38878.0,0.17333873]
[1646593470627,0.02572,38888.0,38882.0,0.17396423]
[1646593471027,0.002,38887.0,38882.0,0.17396423]
[1646593471427,0.17836389,38887.0,38882.0,0.17396423]
[1646593472028,0.00020188,38886.0,38882.0,0.17396423]
[1646593473073,0.02572,38888.0,38882.0,0.17396423]
[1646593473275,0.00020534,38886.0,38882.0,0.17396423]
[1646593474277,0.18767639,38887.0,38882.0,0.17396423]
[1646593474479,0.00020534,38886.0,38882.0,0.17396423]
[1646593475480,0.18767639,38887.0,38882.0,0.17396423]
[1646593475781,0.00020534,38886.0,38882.0,0.17396423]
[1646593476630,0.18767639,38887.0,38882.0,0.17396423]
[1646593476832,0.00018505,38886.0,38882.0,0.17396423]
[1646593477730,0.02572,38888.0,38882.0,0.17396423]
[1646593477933,0.02572,38888.0,38884.0,0.20243881]
[1646593478132,0.00018505,38886.0,38884.0,0.20243881]
[1646593478931,0.02572,38888.0,38884.0,0.20243881]
[1646593479132,0.4144,38891.0,38884.0,0.20243881]
[1646593479333,0.00018504,38887.0,38885.0,0.3]
[1646593479532,0.00018504,38887.0,38885.0,0.0516]
[1646593479777,0.00018504,38887.0,38886.0,0.3]
[1646593480177,0.4144,38891.0,38886.0,0.3516]
[1646593480178,0.4084,38891.0,38886.0,0.3516]
[1646593480379,0.4084,38891.0,38890.0,0.21632036]
[1646593480778,0.4084,38891.0,38890.0,0.51632036]
[1646593481179,0.4084,38891.0,38890.0,0.21632036]
[1646593482681,0.4084,38891.0,38890.0,0.51632036]
[1646593482879,0.4084,38891.0,38890.0,0.21632036]
[1646593484127,0.70956,38897.0,38890.0,0.26792036]
[1646593484128,0.00018738,38892.0,38890.0,0.26792036]
[1646593484324,0.00018738,38892.0,38891.0,0.21861828]
[1646593484523,0.00018738,38892.0,38891.0,0.49642324]
[1646593484726,0.00018738,38892.0,38891.0,0.49668038]
[1646593484925,0.01296,38897.0,38891.0,0.21560556]
[1646593485123,0.01296,38897.0,38892.0,0.0516]
[1646593485326,0.00018707,38893.0,38892.0,0.0516]
[1646593485526,0.00018707,38893.0,38892.0,0.22900745]
[1646593486327,0.01296,38897.0,38892.0,0.22900745]
[1646593486527,0.01296,38897.0,38896.0,0.2584858]
[1646593487778,0.01296,38897.0,38896.0,0.4100454]
[1646593490180,0.01296,38897.0,38896.0,0.2584858]
[1646593491227,0.01296,38897.0,38896.0,0.46066547]
[1646593491429,0.01296,38897.0,38896.0,0.2584858]
[1646593491830,0.01296,38897.0,38895.0,0.002]
[1646593492228,0.01296,38897.0,38888.0,0.1482]
[1646593492428,0.01296,38897.0,38885.0,0.0516]
[1646593492628,0.18997257,38893.0,38885.0,0.0516]
[1646593492828,0.18997257,38893.0,38888.0,0.18950263]
[1646593493127,0.18997257,38893.0,38888.0,0.25381963]
[1646593493630,0.03868,38897.0,38888.0,0.25381963]
[1646593493828,0.00010718,38892.0,38888.0,0.25381963]
[1646593494778,0.03868,38897.0,38888.0,0.25381963]
[1646593494978,0.00010718,38892.0,38888.0,0.25381963]
[1646593495978,0.16084385,38893.0,38888.0,0.25381963]
[1646593496181,0.00020847,38892.0,38888.0,0.25381963]
[1646593496981,0.01296,38897.0,38888.0,0.25381963]
[1646593497180,0.01296,38897.0,38891.0,0.064311]
[1646593497383,0.00020847,38892.0,38891.0,0.064311]
[1646593497780,0.00020847,38892.0,38888.0,0.18950263]
[1646593498182,0.18337944,38892.0,38888.0,0.18950263]
[1646593498432,0.01296,38897.0,38888.0,0.18950263]
[1646593498633,0.00020847,38892.0,38888.0,0.18950263]
[1646593499333,0.00020847,38892.0,38889.0,0.064315]
[1646593499533,0.20812027,38894.0,38889.0,0.064315]
[1646593499734,0.00019955,38892.0,38889.0,0.064315]
[1646593500734,0.20812027,38894.0,38889.0,0.064315]
[1646593500934,0.0001913,38892.0,38889.0,0.064315]
[1646593501936,0.20912027,38894.0,38889.0,0.064315]
[1646593502176,0.0001913,38892.0,38889.0,0.064315]
[1646593503177,0.20812027,38894.0,38890.0,0.0643065]
[1646593503377,0.00019217,38892.0,38891.0,0.12861]
[1646593504381,0.17834045,38894.0,38891.0,0.12861]
[1646593504580,0.0001858,38893.0,38891.0,0.12861]
[1646593505483,0.01296,38897.0,38891.0,0.12861]
[1646593505678,0.0001858,38894.0,38891.0,0.12861]
[1646593506726,0.01296,38897.0,38891.0,0.12861]
[1646593506928,0.00018596,38894.0,38891.0,0.12861]
[1646593507727,0.00018596,38894.0,38891.0,0.064305]
[1646593507927,0.21503352,38897.0,38888.0,0.19050263]
[1646593507928,0.21503352,38897.0,38889.0,0.064315]
[1646593508126,0.00018636,38894.0,38889.0,0.064315]
[1646593509026,0.21503352,38897.0,38889.0,0.064315]
[1646593509430,0.00018636,38893.0,38889.0,0.064315]
[1646593509690,0.00018636,38893.0,38888.0,0.001]
[1646593509691,0.06994897,38893.0,38888.0,0.001]
[1646593509890,0.32572,38892.0,38888.0,0.001]
[1646593510292,0.32572,38892.0,38880.0,0.65561696]
[1646593510492,0.15378418,38885.0,38883.0,0.19278159]
[1646593511292,0.3,38884.0,38883.0,0.19278159]
[1646593511490,0.15378418,38885.0,38883.0,0.19278159]
[1646593511692,0.15397069,38885.0,38883.0,0.19278159]
[1646593512090,0.00018651,38885.0,38883.0,0.19278159]
[1646593512493,0.00018651,38885.0,38883.0,0.19271316]
[1646593512691,0.02572,38891.0,38883.0,0.19271316]
[1646593513092,0.00018651,38886.0,38883.0,0.19271316]
[1646593513849,0.002,38891.0,38883.0,0.19271316]
[1646593514247,0.002,38891.0,38884.0,0.18917973]
[1646593514248,0.20403262,38889.0,38884.0,0.18917973]
[1646593514447,0.00018652,38886.0,38884.0,0.18917973]
[1646593515047,0.00018652,38886.0,38881.0,0.1688562]
[1646593515249,0.002,38887.0,38884.0,0.06432]
[1646593515453,0.00218651,38887.0,38884.0,0.06432]
[1646593516249,0.00018651,38887.0,38884.0,0.06432]
[1646593516446,0.20961288,38892.0,38889.0,0.21029565]
[1646593516646,0.3,38891.0,38884.0,0.128635]
[1646593516847,0.3,38891.0,38881.0,0.128639]
[1646593517277,0.3,38891.0,38880.0,0.53918402]
[1646593517677,0.15399673,38885.0,38880.0,0.47485702]
[1646593517882,0.3,38884.0,38880.0,0.47485702]
[1646593518378,0.00018651,38887.0,38880.0,0.47485702]
[1646593518777,0.3,38888.0,38880.0,0.47485702]
[1646593518978,0.00018665,38885.0,38880.0,0.47485702]
[1646593519581,0.18820756,38884.0,38880.0,0.47485702]
[1646593520183,0.18839422,38884.0,38880.0,0.47485702]
[1646593520581,0.00018666,38884.0,38880.0,0.47485702]
[1646593521231,0.3,38888.0,38880.0,0.47485702]
[1646593521432,0.00018666,38884.0,38880.0,0.47485702]
[1646593521630,0.16287653,38884.0,38880.0,0.47485702]
[1646593522235,0.00018666,38884.0,38880.0,0.47485702]
[1646593522433,0.3,38888.0,38880.0,0.47485702]
[1646593522635,0.3,38888.0,38885.0,0.16122289]
[1646593522832,0.36020432,38890.0,38885.0,0.16122289]
[1646593522833,0.50870432,38890.0,38885.0,0.16122289]
[1646593523035,0.50870432,38890.0,38880.0,0.47485702]
[1646593523233,0.16073431,38886.0,38880.0,0.47485702]
[1646593523835,0.0001865,38885.0,38880.0,0.47485702]
[1646593524034,0.0001865,38885.0,38884.0,0.18790455]
[1646593524235,8.658e-05,38885.0,38884.0,0.18790455]
[1646593524883,0.16073431,38886.0,38884.0,0.18790455]
[1646593525882,0.16073431,38886.0,38880.0,0.47485702]
[1646593526084,0.3,38885.0,38880.0,0.47485702]
[1646593527474,0.3,38883.0,38880.0,0.47485702]
[1646593527671,0.37854755,38883.0,38880.0,0.47485702]
[1646593527872,0.0516,38882.0,38880.0,0.15707196]
[1646593528073,0.3,38881.0,38880.0,0.15707196]
[1646593528519,0.2999018,38881.0,38880.0,0.15707196]
[1646593529222,0.38497108,38881.0,38880.0,0.15707196]
[1646593530028,0.53358021,38881.0,38880.0,0.15707196]
[1646593530223,0.4256218,38881.0,38880.0,0.15707196]
[1646593532374,1.28040008,38881.0,38880.0,0.15707196]
[1646593532579,1.33200008,38881.0,38880.0,0.15707196]
[1646593532774,1.2576218,38881.0,38880.0,0.15707196]
[1646593533375,1.2704718,38881.0,38880.0,0.15707196]
[1646593533673,1.2576218,38881.0,38880.0,0.15707196]
[1646593533873,0.4515018,38881.0,38880.0,0.15707196]
[1646593536116,0.6272218,38881.0,38880.0,0.15707196]
[1646593536314,0.4515018,38881.0,38880.0,0.15707196]
[1646593536516,0.1516,38881.0,38880.0,0.15707196]
[1646593536716,0.4,38883.0,38880.0,0.15707196]
[1646593536916,0.1,38882.0,38880.0,0.15707196]
[1646593537115,0.4,38883.0,38880.0,0.15707196]
[1646593538716,0.4,38883.0,38880.0,0.15207196]
[1646593540566,0.1,38883.0,38880.0,0.3119746]
[1646593540762,0.26178576,38884.0,38880.0,0.3119746]
[1646593541962,0.1,38884.0,38880.0,0.3119746]
[1646593542171,0.1,38885.0,38880.0,0.3119746]
[1646593542365,0.00020338,38886.0,38880.0,0.3119746]
[1646593542765,0.1437,38888.0,38880.0,0.3119746]
[1646593542966,0.1437,38888.0,38882.0,0.15059847]
[1646593543171,0.00020338,38886.0,38882.0,0.15059847]
[1646593543421,0.00020338,38886.0,38880.0,0.37629592]
[1646593543623,0.00020338,38886.0,38881.0,0.064323]
[1646593544021,0.3,38890.0,38881.0,0.064323]
[1646593544224,0.00020115,38886.0,38881.0,0.064323]
[1646593544621,0.00020115,38886.0,38881.0,0.22111467]
[1646593545021,0.00020115,38886.0,38880.0,0.35792939]
[1646593545222,0.3,38890.0,38880.0,0.35892939]
[1646593545422,0.00020115,38886.0,38880.0,0.35892939]
[1646593545827,0.00020115,38886.0,38880.0,0.51578701]
[1646593546423,0.3,38890.0,38880.0,0.5791091]
[1646593546622,0.00020115,38886.0,38881.0,0.064323]
[1646593546822,0.00020115,38886.0,38882.0,0.064321]
[1646593547275,0.00020115,38886.0,38880.0,0.46883222]
[1646593547677,0.3,38890.0,38880.0,0.46883222]
[1646593547976,0.59690964,38891.0,38880.0,0.46883222]
[1646593547977,0.00020114,38886.0,38880.0,0.46883222]
[1646593548577,0.00020114,38886.0,38880.0,0.3763006]
[1646593548776,0.16792652,38885.0,38880.0,0.3119746]
[1646593551116,0.00020114,38886.0,38880.0,0.3119746]
[1646593551317,0.003,38887.0,38880.0,0.3119746]
[1646593551517,0.00018551,38886.0,38880.0,0.3119746]
[1646593552516,0.50870048,38888.0,38880.0,0.3119746]
[1646593552716,0.00018551,38886.0,38880.0,0.3119746]
[1646593553614,0.71665889,38888.0,38880.0,0.3119746]
[1646593554016,0.00018551,38886.0,38880.0,0.3119746]
[1646593554761,0.71665889,38888.0,38880.0,0.3119746]
[1646593555062,0.00018579,38886.0,38880.0,0.3119746]
[1646593555463,0.00018579,38886.0,38880.0,0.3763026]
[1646593555862,0.00018579,38886.0,38881.0,0.17359807]
[1646593556066,0.20795841,38889.0,38881.0,0.17359807]
[1646593556263,0.45863014,38891.0,38881.0,0.17359807]
[1646593556264,0.00018661,38886.0,38881.0,0.17359807]
[1646593556863,0.00018661,38886.0,38880.0,0.3763026]
[1646593557264,0.50795841,38890.0,38880.0,0.4279026]
[1646593557463,0.00018661,38886.0,38880.0,0.4279026]
[1646593558521,0.50795841,38890.0,38880.0,0.4279026]
[1646593558725,0.00018657,38886.0,38880.0,0.4279026]
[1646593559123,0.00018657,38886.0,38880.0,0.3635746]
[1646593559724,0.3,38888.0,38880.0,0.3635746]
[1646593559923,0.0001865,38886.0,38880.0,0.3635746]
[1646593560927,0.3,38888.0,38880.0,0.3635746]
[1646593561127,0.0001865,38886.0,38880.0,0.3635746]
[1646593562027,0.3,38888.0,38880.0,0.3635746]
[1646593562263,0.00018651,38886.0,38880.0,0.3635746]
[1646593563164,0.3,38888.0,38880.0,0.3635746]
[1646593563366,0.20795841,38889.0,38880.0,0.3635746]
[1646593563567,0.00018651,38886.0,38880.0,0.3635746]
[1646593564467,0.50795841,38890.0,38880.0,0.3635746]
[1646593564668,0.00018651,38886.0,38880.0,0.3635746]
[1646593565668,0.50795841,38890.0,38880.0,0.3635746]
[1646593565921,0.00018651,38886.0,38880.0,0.3635746]
[1646593566816,0.48314492,38890.0,38881.0,0.064328]
[1646593567017,0.00020162,38886.0,38881.0,0.064328]
[1646593568119,0.48314492,38890.0,38880.0,0.3119746]
[1646593568120,0.16781636,38884.0,38880.0,0.3119746]
[1646593568921,0.35961868,38884.0,38880.0,0.3119746]
[1646593569123,0.16781636,38884.0,38880.0,0.3119746]
[1646593570367,0.58586223,38890.0,38880.0,0.3119746]
[1646593570564,0.19296894,38886.0,38880.0,0.3119746]
[1646593570967,0.3,38885.0,38880.0,0.15207196]
[1646593572068,0.46474043,38885.0,38880.0,0.15207196]
[1646593575118,1.0,38884.0,38878.0,0.21357649]
[1646593575319,0.3,38883.0,38878.0,0.21357649]
[1646593576117,0.3,38883.0,38876.0,0.001]
[1646593576519,0.16019581,38877.0,38873.0,0.1454]
[1646593576720,0.3,38876.0,38871.0,0.21081873]
[1646593577171,0.3,38876.0,38870.0,0.17692085]
[1646593582719,0.16019581,38877.0,38870.0,0.17692085]
[1646593582921,0.3,38879.0,38870.0,0.17692085]
[1646593583120,0.3,38879.0,38877.0,0.17041544]
[1646593584322,0.20059367,38880.0,38877.0,0.17041544]
[1646593584778,0.3,38881.0,38877.0,0.17041544]
[1646593588722,0.50816682,38881.0,38877.0,0.17041544]
[1646593589118,0.50816682,38881.0,38877.0,0.16784328]
[1646593589321,0.19562956,38878.0,38877.0,0.16784328]
[1646593589519,0.50816682,38881.0,38877.0,0.16784328]
[1646593590519,0.20648625,38879.0,38877.0,0.16784328]
[1646593590720,0.20648625,38879.0,38877.0,0.16773328]
[1646593591122,0.50816682,38881.0,38877.0,0.16773328]
[1646593591324,0.3,38881.0,38877.0,0.16773328]
[1646593591923,0.30816682,38882.0,38877.0,0.16773328]
[1646593592168,0.26014223,38884.0,38877.0,0.16773328]
[1646593592169,0.20816682,38884.0,38877.0,0.16773328]
[1646593592368,0.51416682,38885.0,38877.0,0.16773328]
[1646593592673,0.3,38886.0,38877.0,0.16773328]
[1646593592868,0.56256682,38887.0,38877.0,0.16664328]
[1646593593267,0.15313122,38885.0,38877.0,0.16664328]
[1646593593569,0.15313122,38885.0,38878.0,0.06432829]
[1646593593769,0.3,38886.0,38878.0,0.06432829]
[1646593593968,0.56256682,38887.0,38883.0,0.19967755]
[1646593594167,0.20816682,38887.0,38883.0,0.19967755]
[1646593596022,0.19366324,38886.0,38883.0,0.19967755]
[1646593597326,0.49366324,38886.0,38880.0,0.064328]
[1646593598127,0.48866324,38886.0,38880.0,0.064328]
[1646593598727,0.48866324,38886.0,38880.0,0.23415039]
[1646593599524,0.3,38886.0,38880.0,0.23415039]
[1646593601168,0.19435113,38887.0,38880.0,0.23415039]
[1646593601772,0.40254343,38887.0,38880.0,0.23415039]
[1646593602071,0.19435113,38887.0,38880.0,0.23415039]
[1646593602470,0.2081923,38887.0,38880.0,0.23415039]
[1646593605215,0.68775875,38888.0,38880.0,0.13866071]
[1646593605417,0.68796064,38888.0,38880.0,0.13866071]
[1646593606016,0.15731739,38887.0,38880.0,0.13866071]
[1646593606516,0.15731739,38887.0,38880.0,0.20298871]
[1646593608571,0.50839414,38888.0,38880.0,0.20298871]
[1646593608774,0.50839414,38888.0,38881.0,0.0516]
[1646593608775,0.00020184,38888.0,38881.0,0.0516]
[1646593608973,0.1421,38889.0,38882.0,0.064324]
[1646593609170,0.00020184,38888.0,38883.0,0.0516]
[1646593609972,0.00020184,38888.0,38886.0,0.1575024]
[1646593610170,0.2081923,38892.0,38886.0,0.2091024]
[1646593610369,0.00020184,38888.0,38886.0,0.2091024]
[1646593611222,0.2081923,38892.0,38886.0,0.2091024]
[1646593611423,0.2131923,38892.0,38886.0,0.1891024]
[1646593611622,0.00020185,38889.0,38886.0,0.1891024]
[1646593612221,0.00020185,38889.0,38886.0,0.0516]
[1646593612423,0.49361749,38891.0,38886.0,0.0516]
[1646593612824,0.00020185,38889.0,38886.0,0.0516]
[1646593613723,0.49361749,38891.0,38886.0,0.0516]
[1646593613923,0.00020185,38889.0,38882.0,0.27617613]
[1646593614975,0.49361749,38891.0,38882.0,0.27617613]
[1646593615171,0.00020185,38888.0,38882.0,0.27617613]
[1646593615973,0.00020185,38888.0,38882.0,0.21185213]
[1646593616176,0.19111493,38887.0,38882.0,0.21185213]
[1646593617573,0.00020184,38888.0,38882.0,0.21185213]
[1646593618433,0.002,38889.0,38882.0,0.21185213]
[1646593618634,0.21947484,38890.0,38882.0,0.21185213]
[1646593618837,0.00020185,38888.0,38882.0,0.21185213]
[1646593619340,0.00020185,38888.0,38884.0,0.06431828]
[1646593619538,0.00020185,38888.0,38885.0,0.0516]
[1646593619740,0.302,38893.0,38885.0,0.0516]
[1646593619937,0.002,38893.0,38885.0,0.0516]
[1646593620237,0.00020185,38888.0,38885.0,0.0516]
[1646593620637,0.00020185,38888.0,38885.0,0.07732]
[1646593620836,0.3,38896.0,38886.0,0.06431]
[1646593621037,0.3,38896.0,38887.0,0.0516]
[1646593621237,0.00080727,38894.0,38887.0,0.0516]
[1646593621638,0.19755881,38894.0,38887.0,0.0516]
[1646593622038,0.19675154,38894.0,38887.0,0.115918]
[1646593622274,0.00020184,38892.0,38887.0,0.115918]
[1646593622474,0.00020184,38892.0,38889.0,0.15884505]
[1646593623275,0.57026,38897.0,38889.0,0.15884505]
[1646593623575,0.57026,38897.0,38896.0,0.3]
[1646593623777,0.42136,38897.0,38896.0,0.17670942]
[1646593623980,0.72136,38897.0,38896.0,0.17670942]
[1646593626417,0.42136,38897.0,38896.0,0.17670942]
[1646593626621,0.72136,38897.0,38896.0,0.17670942]
[1646593630072,0.42136,38897.0,38896.0,0.17670942]
[1646593630271,0.72136,38897.0,38896.0,0.17670942]
[1646593630671,0.42136,38897.0,38896.0,0.17670942]
[1646593637878,0.72136,38897.0,38896.0,0.17670942]
[1646593642521,0.42001593,38897.0,38896.0,0.17670942]
[1646593643724,0.42001593,38897.0,38896.0,0.10958361]
[1646593644123,0.01296,38897.0,38896.0,0.10958361]
[1646593647778,0.31296,38897.0,38896.0,0.10958361]
[1646593647979,0.01296,38897.0,38896.0,0.10958361]
[1646593650320,0.22138258,38897.0,38896.0,0.10958361]
[1646593652269,0.01296,38897.0,38896.0,0.10958361]
[1646593657222,0.31296,38897.0,38896.0,0.10958361]
[1646593657724,0.01296,38897.0,38896.0,0.10958361]
[1646593661675,0.27320037,38897.0,38896.0,0.10958361]
[1646593663825,0.26855674,38897.0,38896.0,0.10958361]
[1646593664728,0.00831637,38897.0,38896.0,0.10958361]
[1646593666130,0.30831637,38897.0,38896.0,0.10958361]
[1646593666333,0.30831637,38897.0,38886.0,0.03622282]
[1646593666334,0.385909,38896.0,38886.0,0.03622282]
[1646593666535,0.26075373,38888.0,38885.0,0.03622282]
[1646593666734,0.28385446,38877.0,38875.0,0.26370547]
[1646593666931,0.3,38876.0,38874.0,0.26372252]
[1646593667176,0.21167258,38875.0,38873.0,0.26372252]
[1646593667378,0.1,38874.0,38873.0,0.26372252]